[Event "Titled Tuesday Blitz March 22 Late 2022"]
[White "Zhurbinsky, David"]
[Black "Marcziter, Dmitrii"]
[WhiteFideId "2072904"]
[BlackFideId "13900765"]
[WhiteElo "2554"]
[BlackElo "2155"]
[Result "1-0"]
[Round "08"]
[TimeControl "180+1"]
[Date "2022.03.22"]
[WhiteClock "0:00:38"]
[BlackClock "0:02:15"]

1. e4 {[%clk 0:02:59]}  c5 {[%clk 0:02:59]} 2. Nf3 {[%clk 0:03:00]}  a6 {[%clk 0:02:59]} 3. c4 {[%clk 0:03:00]}  e6 {[%clk 0:03:00]} 4. d4 {[%clk 0:03:01]}  cxd4 {[%clk 0:03:00]} 5. Nxd4 {[%clk 0:03:02]}  Nf6 {[%clk 0:03:01]} 6. Nc3 {[%clk 0:03:02]}  Qc7 {[%clk 0:03:01]} 7. Be2 {[%clk 0:03:03]}  b6 {[%clk 0:03:02]} 8. O-O {[%clk 0:03:03]}  Bb7 {[%clk 0:03:03]} 9. f3 {[%clk 0:03:03]}  Nc6 {[%clk 0:03:02]} 10. Be3 {[%clk 0:03:03]}  Ne5 {[%clk 0:03:03]} 11. Rc1 {[%clk 0:03:03]}  Ng6 {[%clk 0:03:03]} 12. Qd2 {[%clk 0:02:59]}  h5 {[%clk 0:03:01]} 13. a3 {[%clk 0:02:41]}  h4 {[%clk 0:03:00]} 14. b4 {[%clk 0:02:37]}  Bd6 {[%clk 0:03:00]} 15. f4 {[%clk 0:02:29]}  Bxf4 {[%clk 0:02:57]} 16. Bxf4 {[%clk 0:02:23]}  Nxf4 {[%clk 0:02:54]} 17. Qxf4 {[%clk 0:01:07]}  Qxf4 {[%clk 0:02:52]} 18. Rxf4 {[%clk 0:01:07]}  e5 {[%clk 0:02:52]} 19. Nf5 {[%clk 0:01:05]}  exf4 {[%clk 0:02:50]} 20. Nd6+ {[%clk 0:01:06]}  Ke7 {[%clk 0:02:50]} 21. Nxb7 {[%clk 0:01:06]}  Rab8 {[%clk 0:02:47]} 22. e5 {[%clk 0:01:06]}  Rxb7 {[%clk 0:02:44]} 23. exf6+ {[%clk 0:01:06]}  Kxf6 {[%clk 0:02:44]} 24. Nd5+ {[%clk 0:01:06]}  Kg5 {[%clk 0:02:38]} 25. Rf1 {[%clk 0:01:04]}  Re8 {[%clk 0:02:35]} 26. Bd3 {[%clk 0:00:59]}  d6 {[%clk 0:02:31]} 27. Rxf4 {[%clk 0:00:57]}  Re5 {[%clk 0:02:27]} 28. h3 {[%clk 0:00:55]}  Rxd5 {[%clk 0:02:26]} 29. Rg4+ {[%clk 0:00:55]}  Kh5 {[%clk 0:02:27]} 30. cxd5 {[%clk 0:00:56]}  b5 {[%clk 0:02:25]} 31. Rxg7 {[%clk 0:00:52]}  Re7 {[%clk 0:02:24]} 32. Kf2 {[%clk 0:00:51]}  Kh6 {[%clk 0:02:24]} 33. Rg4 {[%clk 0:00:51]}  Kh5 {[%clk 0:02:24]} 34. Kf3 {[%clk 0:00:48]}  Re5 {[%clk 0:02:24]} 35. Rf4 {[%clk 0:00:39]}  Rxd5 {[%clk 0:02:22]} 36. Rf5+ {[%clk 0:00:34]}  Rxf5+ {[%clk 0:02:20]} 37. Bxf5 {[%clk 0:00:35]}  Kg5 {[%clk 0:02:20]} 38. Be4 {[%clk 0:00:35]}  f5 {[%clk 0:02:19]} 39. Bd5 {[%clk 0:00:35]}  Kf6 {[%clk 0:02:17]} 40. Kf4 {[%clk 0:00:36]}  Kg6 {[%clk 0:02:18]} 41. Be6 {[%clk 0:00:36]}  Kf6 {[%clk 0:02:18]} 42. Bxf5 {[%clk 0:00:36]}  d5 {[%clk 0:02:19]} 43. Bd3 {[%clk 0:00:36]}  d4 {[%clk 0:02:18]} 44. Ke4 {[%clk 0:00:37]}  Kg5 {[%clk 0:02:19]} 45. Kxd4 {[%clk 0:00:37]}  Kf4 {[%clk 0:02:19]} 46. Kc5 {[%clk 0:00:37]}  Ke3 {[%clk 0:02:20]} 47. Bf5 {[%clk 0:00:37]}  Kf2 {[%clk 0:02:20]} 48. Be4 {[%clk 0:00:38]}  Ke3 {[%clk 0:02:20]} 49. Bf3 {[%clk 0:00:38]}  Kd2 {[%clk 0:02:20]} 50. Kb6 {[%clk 0:00:39]}  Kc3 {[%clk 0:02:21]} 51. Kxa6 {[%clk 0:00:40]}  Kb2 {[%clk 0:02:22]} 52. Kxb5 {[%clk 0:00:39]}  Kxa3 {[%clk 0:02:23]} 53. Kc4 {[%clk 0:00:40]}  Kb2 {[%clk 0:02:23]} 54. b5 {[%clk 0:00:40]}  Kc2 {[%clk 0:02:23]} 55. b6 {[%clk 0:00:41]}  Kd2 {[%clk 0:02:24]} 56. Kd4 {[%clk 0:00:41]}  Ke1 {[%clk 0:02:24]} 57. Ke3 {[%clk 0:00:42]}  Kf1 {[%clk 0:02:22]} 58. b7 {[%clk 0:00:41]}  Kg1 {[%clk 0:02:23]} 59. b8=Q {[%clk 0:00:40]}  Kh1 {[%clk 0:02:22]} 60. g4+ {[%clk 0:00:38]}  Kg1 {[%clk 0:02:18]} 61. g5 {[%clk 0:00:38]}  Kf1 {[%clk 0:02:15]} 62. g6 {[%clk 0:00:38]} 1-0


[Site "https://www.chess.com"]

[Event "Titled Tuesday Blitz March 22 Late 2022"]
[White "Altman, Joshua"]
[Black "Lin, Dachey"]
[WhiteFideId "426210"]
[BlackFideId "2029650"]
[WhiteElo "1945"]
[BlackElo "2313"]
[Result "1-0"]
[Round "09"]
[TimeControl "180+1"]
[Date "2022.03.22"]
[WhiteClock "0:02:25"]
[BlackClock "0:01:38"]

1. d4 {[%clk 0:03:00]}  g6 {[%clk 0:03:00]} 2. c4 {[%clk 0:03:00]}  Bg7 {[%clk 0:03:01]} 3. Nf3 {[%clk 0:03:00]}  c5 {[%clk 0:03:01]} 4. d5 {[%clk 0:02:58]}  f5 {[%clk 0:03:00]} 5. Qc2 {[%clk 0:02:53]}  Nf6 {[%clk 0:03:00]} 6. Nc3 {[%clk 0:02:54]}  O-O {[%clk 0:03:01]} 7. Bg5 {[%clk 0:02:51]}  d6 {[%clk 0:03:01]} 8. e3 {[%clk 0:02:50]}  Ne4 {[%clk 0:02:56]} 9. Nxe4 {[%clk 0:02:45]}  fxe4 {[%clk 0:02:57]} 10. Nd2 {[%clk 0:02:45]}  Bf5 {[%clk 0:02:50]} 11. Be2 {[%clk 0:02:44]}  Nd7 {[%clk 0:02:49]} 12. g4 {[%clk 0:02:41]}  h6 {[%clk 0:02:32]} 13. gxf5 {[%clk 0:02:36]}  hxg5 {[%clk 0:02:33]} 14. fxg6 {[%clk 0:02:36]}  e6 {[%clk 0:01:44]} 15. Qxe4 {[%clk 0:02:27]}  exd5 {[%clk 0:01:38]} 16. Qe6+ {[%clk 0:02:25]} 1-0


[Site "https://www.chess.com"]

[Event "Titled Tuesday Blitz March 22 Late 2022"]
[White "Ansh M Shah"]
[Black "Szpar, Milosz"]
[WhiteFideId "25033379"]
[BlackFideId "1184989"]
[WhiteElo "1819"]
[BlackElo "2447"]
[Result "0-1"]
[Round "09"]
[TimeControl "180+1"]
[Date "2022.03.22"]
[WhiteClock "0:00:06"]
[BlackClock "0:00:53"]

1. d4 {[%clk 0:02:31]}  Nf6 {[%clk 0:02:58]} 2. c4 {[%clk 0:02:32]}  e6 {[%clk 0:02:54]} 3. Nf3 {[%clk 0:02:31]}  c5 {[%clk 0:02:53]} 4. g3 {[%clk 0:02:32]}  cxd4 {[%clk 0:02:48]} 5. Nxd4 {[%clk 0:02:33]}  a6 {[%clk 0:02:37]} 6. Bg2 {[%clk 0:02:33]}  Nc6 {[%clk 0:02:32]} 7. Nxc6 {[%clk 0:02:27]}  bxc6 {[%clk 0:02:32]} 8. O-O {[%clk 0:02:28]}  d5 {[%clk 0:02:31]} 9. b3 {[%clk 0:02:27]}  Be7 {[%clk 0:02:30]} 10. Nd2 {[%clk 0:02:27]}  O-O {[%clk 0:02:30]} 11. Bb2 {[%clk 0:02:28]}  a5 {[%clk 0:02:29]} 12. a3 {[%clk 0:02:25]}  Ba6 {[%clk 0:02:27]} 13. Qc2 {[%clk 0:02:25]}  h6 {[%clk 0:02:25]} 14. Rfd1 {[%clk 0:02:25]}  Qb6 {[%clk 0:02:24]} 15. Rab1 {[%clk 0:02:20]}  Rac8 {[%clk 0:02:23]} 16. b4 {[%clk 0:01:58]}  Rfd8 {[%clk 0:02:02]} 17. Bc3 {[%clk 0:01:52]}  axb4 {[%clk 0:02:00]} 18. Bxb4 {[%clk 0:01:49]}  c5 {[%clk 0:02:00]} 19. Bc3 {[%clk 0:01:48]}  Qc7 {[%clk 0:01:57]} 20. cxd5 {[%clk 0:00:43]}  exd5 {[%clk 0:01:57]} 21. Nb3 {[%clk 0:00:43]}  Rd7 {[%clk 0:01:38]} 22. Bxf6 {[%clk 0:00:35]}  Bxf6 {[%clk 0:01:38]} 23. Rxd5 {[%clk 0:00:35]}  Rxd5 {[%clk 0:01:36]} 24. Bxd5 {[%clk 0:00:36]}  c4 {[%clk 0:01:36]} 25. Nd2 {[%clk 0:00:36]}  c3 {[%clk 0:01:36]} 26. Ne4 {[%clk 0:00:37]}  Be5 {[%clk 0:01:37]} 27. Rc1 {[%clk 0:00:28]}  Rd8 {[%clk 0:01:37]} 28. Ba2 {[%clk 0:00:27]}  Kh8 {[%clk 0:01:35]} 29. Bb3 {[%clk 0:00:19]}  Rc8 {[%clk 0:01:33]} 30. a4 {[%clk 0:00:17]}  f5 {[%clk 0:01:33]} 31. Be6 {[%clk 0:00:14]}  fxe4 {[%clk 0:01:28]} 32. Bxc8 {[%clk 0:00:15]}  Bxc8 {[%clk 0:01:23]} 33. Qxe4 {[%clk 0:00:15]}  Bb7 {[%clk 0:01:24]} 34. Qf5 {[%clk 0:00:13]}  Qc6 {[%clk 0:01:19]} 35. f3 {[%clk 0:00:05]}  Bd4+ {[%clk 0:01:19]} 36. Kg2 {[%clk 0:00:05]}  Qe8 {[%clk 0:01:15]} 37. Rc2 {[%clk 0:00:04]}  Ba6 {[%clk 0:01:02]} 38. e4 {[%clk 0:00:03]}  Bd3 {[%clk 0:01:01]} 39. Rc1 {[%clk 0:00:04]}  c2 {[%clk 0:01:01]} 40. Qd5 {[%clk 0:00:04]}  Qxa4 {[%clk 0:01:00]} 41. Kh3 {[%clk 0:00:04]}  Bc4 {[%clk 0:00:53]} 42. Qxd4 {[%clk 0:00:03]}  Be6+ {[%clk 0:00:53]} 43. Kg2 {[%clk 0:00:04]}  Qxd4 {[%clk 0:00:53]} 44. Rxc2 {[%clk 0:00:05]}  Bc4 {[%clk 0:00:53]} 45. Rf2 {[%clk 0:00:05]}  Qd1 {[%clk 0:00:52]} 46. e5 {[%clk 0:00:06]}  Qe1 {[%clk 0:00:52]} 47. f4 {[%clk 0:00:06]}  Bd5+ {[%clk 0:00:52]} 48. Kh3 {[%clk 0:00:06]}  Qxf2 {[%clk 0:00:52]} 49. Kg4 {[%clk 0:00:07]}  Be6+ {[%clk 0:00:52]} 50. Kh5 {[%clk 0:00:07]}  Qxh2+ {[%clk 0:00:52]} 51. Kg6 {[%clk 0:00:07]}  Qxg3+ {[%clk 0:00:53]} 52. Kh5 {[%clk 0:00:06]}  Qg4# {[%clk 0:00:53]} 0-1


[Site "https://www.chess.com"]

[Event "Titled Tuesday Blitz March 22 Late 2022"]
[White "Antonova, Nadezhda"]
[Black "Koutlas, Nikolaos"]
[WhiteFideId "14700182"]
[BlackFideId "25827138"]
[WhiteElo "1751"]
[BlackElo "1610"]
[Result "0-1"]
[Round "09"]
[TimeControl "180+1"]
[Date "2022.03.22"]
[WhiteClock "0:01:22"]
[BlackClock "0:02:01"]

1. Nf3 {[%clk 0:02:59]}  Nf6 {[%clk 0:02:58]} 2. b3 {[%clk 0:03:00]}  g6 {[%clk 0:02:56]} 3. Bb2 {[%clk 0:03:00]}  Bg7 {[%clk 0:02:57]} 4. g3 {[%clk 0:03:01]}  O-O {[%clk 0:02:57]} 5. Bg2 {[%clk 0:03:01]}  d6 {[%clk 0:02:56]} 6. d4 {[%clk 0:03:01]}  Bf5 {[%clk 0:02:54]} 7. O-O {[%clk 0:02:55]}  d5 {[%clk 0:02:53]} 8. c4 {[%clk 0:02:50]}  c6 {[%clk 0:02:53]} 9. Nc3 {[%clk 0:02:49]}  Nbd7 {[%clk 0:02:51]} 10. Rc1 {[%clk 0:02:47]}  Ne4 {[%clk 0:02:42]} 11. Nh4 {[%clk 0:02:37]}  Nxc3 {[%clk 0:02:35]} 12. Bxc3 {[%clk 0:02:37]}  Be4 {[%clk 0:02:34]} 13. f3 {[%clk 0:02:34]}  Bf5 {[%clk 0:02:32]} 14. e4 {[%clk 0:02:30]}  Be6 {[%clk 0:02:29]} 15. Bb2 {[%clk 0:02:02]}  dxc4 {[%clk 0:02:18]} 16. bxc4 {[%clk 0:02:01]}  Nb6 {[%clk 0:02:18]} 17. Qb3 {[%clk 0:01:49]}  Nxc4 {[%clk 0:02:15]} 18. Rxc4 {[%clk 0:01:49]}  b5 {[%clk 0:02:15]} 19. d5 {[%clk 0:01:46]}  bxc4 {[%clk 0:02:14]} 20. Qc2 {[%clk 0:01:45]}  Qb6+ {[%clk 0:02:13]} 21. Kh1 {[%clk 0:01:43]}  Qxb2 {[%clk 0:02:12]} 22. Qxb2 {[%clk 0:01:40]}  Bxb2 {[%clk 0:02:12]} 23. dxe6 {[%clk 0:01:40]}  c3 {[%clk 0:02:13]} 24. exf7+ {[%clk 0:01:36]}  Rxf7 {[%clk 0:02:12]} 25. Rf2 {[%clk 0:01:35]}  Rd8 {[%clk 0:02:10]} 26. Bh3 {[%clk 0:01:35]}  Rd2 {[%clk 0:02:03]} 27. Rf1 {[%clk 0:01:22]}  c2 {[%clk 0:02:01]} 28. Be6 {[%clk 0:01:22]}  Rd1 {[%clk 0:02:01]} 0-1


[Site "https://www.chess.com"]

[Event "Titled Tuesday Blitz March 22 Late 2022"]
[White "Aravindh, Chithambaram VR."]
[Black "Gabrielian, Artur"]
[WhiteFideId "5072786"]
[BlackFideId "4131002"]
[WhiteElo "2561"]
[BlackElo "2440"]
[Result "1-0"]
[Round "09"]
[TimeControl "180+1"]
[Date "2022.03.22"]
[WhiteClock "0:00:18"]
[BlackClock "0:00:01"]

1. b3 {[%clk 0:02:57]}  Nf6 {[%clk 0:02:59]} 2. Bb2 {[%clk 0:02:57]}  g6 {[%clk 0:03:00]} 3. g3 {[%clk 0:02:57]}  Bg7 {[%clk 0:02:59]} 4. Bg2 {[%clk 0:02:57]}  O-O {[%clk 0:02:59]} 5. d4 {[%clk 0:02:57]}  d6 {[%clk 0:02:59]} 6. Nf3 {[%clk 0:02:56]}  e5 {[%clk 0:02:58]} 7. dxe5 {[%clk 0:02:56]}  Ng4 {[%clk 0:02:58]} 8. c4 {[%clk 0:02:54]}  Nc6 {[%clk 0:02:58]} 9. Nc3 {[%clk 0:02:54]}  dxe5 {[%clk 0:02:56]} 10. Qxd8 {[%clk 0:02:52]}  Rxd8 {[%clk 0:02:56]} 11. h3 {[%clk 0:02:42]}  Nf6 {[%clk 0:02:43]} 12. Nd2 {[%clk 0:02:39]}  Nd4 {[%clk 0:02:32]} 13. O-O-O {[%clk 0:02:38]}  c6 {[%clk 0:02:23]} 14. e3 {[%clk 0:02:30]}  Ne6 {[%clk 0:02:20]} 15. Nde4 {[%clk 0:02:30]}  Nxe4 {[%clk 0:02:13]} 16. Nxe4 {[%clk 0:02:31]}  f5 {[%clk 0:02:10]} 17. Rxd8+ {[%clk 0:02:26]}  Nxd8 {[%clk 0:02:10]} 18. Nd6 {[%clk 0:01:51]}  Nf7 {[%clk 0:02:04]} 19. Ne8 {[%clk 0:01:36]}  Bh8 {[%clk 0:01:17]} 20. Rd1 {[%clk 0:01:35]}  Rb8 {[%clk 0:01:09]} 21. f4 {[%clk 0:01:25]}  e4 {[%clk 0:01:09]} 22. Bxh8 {[%clk 0:01:11]}  Kxh8 {[%clk 0:01:10]} 23. c5 {[%clk 0:01:07]}  Kg8 {[%clk 0:01:03]} 24. Bf1 {[%clk 0:01:00]}  Kf8 {[%clk 0:00:55]} 25. Nf6 {[%clk 0:00:58]}  Ke7 {[%clk 0:00:28]} 26. Ng8+ {[%clk 0:00:54]}  Kf8 {[%clk 0:00:27]} 27. Nf6 {[%clk 0:00:53]}  Ke7 {[%clk 0:00:27]} 28. Nxh7 {[%clk 0:00:53]}  Be6 {[%clk 0:00:27]} 29. Ng5 {[%clk 0:00:51]}  Nxg5 {[%clk 0:00:26]} 30. fxg5 {[%clk 0:00:52]}  b6 {[%clk 0:00:19]} 31. Rd6 {[%clk 0:00:42]}  Rc8 {[%clk 0:00:14]} 32. Bc4 {[%clk 0:00:40]}  Bxc4 {[%clk 0:00:07]} 33. bxc4 {[%clk 0:00:41]}  bxc5 {[%clk 0:00:04]} 34. Rxg6 {[%clk 0:00:41]}  Rd8 {[%clk 0:00:05]} 35. h4 {[%clk 0:00:35]}  Rd3 {[%clk 0:00:05]} 36. h5 {[%clk 0:00:29]}  Rxe3 {[%clk 0:00:05]} 37. h6 {[%clk 0:00:29]}  Re1+ {[%clk 0:00:05]} 38. Kd2 {[%clk 0:00:29]}  Rh1 {[%clk 0:00:06]} 39. Ke3 {[%clk 0:00:24]}  Kf7 {[%clk 0:00:03]} 40. Rf6+ {[%clk 0:00:24]}  Ke7 {[%clk 0:00:03]} 41. Rxf5 {[%clk 0:00:24]}  Ke6 {[%clk 0:00:02]} 42. Rxc5 {[%clk 0:00:22]}  Kd6 {[%clk 0:00:02]} 43. Ra5 {[%clk 0:00:21]}  c5 {[%clk 0:00:02]} 44. g6 {[%clk 0:00:18]}  Rxh6 {[%clk 0:00:01]} 45. g7 {[%clk 0:00:18]} 1-0


[Site "https://www.chess.com"]

[Event "Titled Tuesday Blitz March 22 Late 2022"]
[White "Artemiev, Vladislav"]
[Black "Fedoseev, Vladimir"]
[WhiteFideId "24101605"]
[BlackFideId "24130737"]
[WhiteElo "2811"]
[BlackElo "2726"]
[Result "1-0"]
[Round "09"]
[TimeControl "180+1"]
[Date "2022.03.22"]
[WhiteClock "0:00:04"]
[BlackClock "0:00:06"]

1. Nf3 {[%clk 0:02:59]}  a6 {[%clk 0:02:58]} 2. e4 {[%clk 0:02:55]}  c5 {[%clk 0:02:57]} 3. c3 {[%clk 0:02:51]}  d6 {[%clk 0:02:35]} 4. d4 {[%clk 0:02:50]}  Qc7 {[%clk 0:02:36]} 5. Bd3 {[%clk 0:02:34]}  Bg4 {[%clk 0:02:32]} 6. O-O {[%clk 0:02:14]}  g6 {[%clk 0:02:30]} 7. Nbd2 {[%clk 0:02:08]}  Bg7 {[%clk 0:02:28]} 8. h3 {[%clk 0:02:08]}  Bd7 {[%clk 0:02:25]} 9. d5 {[%clk 0:01:39]}  Bb5 {[%clk 0:02:05]} 10. c4 {[%clk 0:01:19]}  Bd7 {[%clk 0:02:04]} 11. a4 {[%clk 0:01:12]}  a5 {[%clk 0:01:49]} 12. Re1 {[%clk 0:01:11]}  e5 {[%clk 0:01:47]} 13. dxe6 {[%clk 0:01:09]}  Bxe6 {[%clk 0:01:46]} 14. Nb1 {[%clk 0:01:06]}  Nc6 {[%clk 0:01:41]} 15. Na3 {[%clk 0:00:56]}  Rd8 {[%clk 0:01:27]} 16. Nb5 {[%clk 0:00:55]}  Qb8 {[%clk 0:01:23]} 17. Rb1 {[%clk 0:00:29]}  Nge7 {[%clk 0:01:23]} 18. b3 {[%clk 0:00:29]}  O-O {[%clk 0:01:22]} 19. Bb2 {[%clk 0:00:30]}  Ne5 {[%clk 0:01:23]} 20. Bf1 {[%clk 0:00:30]}  N7c6 {[%clk 0:01:22]} 21. Bc3 {[%clk 0:00:16]}  h6 {[%clk 0:01:15]} 22. Rb2 {[%clk 0:00:16]}  f5 {[%clk 0:01:09]} 23. Rd2 {[%clk 0:00:10]}  fxe4 {[%clk 0:01:01]} 24. Nxe5 {[%clk 0:00:06]}  dxe5 {[%clk 0:00:59]} 25. Rxe4 {[%clk 0:00:07]}  Bf5 {[%clk 0:00:55]} 26. Re1 {[%clk 0:00:05]}  Nd4 {[%clk 0:00:55]} 27. Bxa5 {[%clk 0:00:04]}  Rd7 {[%clk 0:00:49]} 28. Bb6 {[%clk 0:00:04]}  Qc8 {[%clk 0:00:38]} 29. Na7 {[%clk 0:00:04]}  Qb8 {[%clk 0:00:32]} 30. a5 {[%clk 0:00:03]}  Qd6 {[%clk 0:00:28]} 31. Nb5 {[%clk 0:00:02]}  Nf3+ {[%clk 0:00:26]} 32. gxf3 {[%clk 0:00:03]}  Qxd2 {[%clk 0:00:26]} 33. Qxd2 {[%clk 0:00:03]}  Rxd2 {[%clk 0:00:26]} 34. Bxc5 {[%clk 0:00:04]}  Rc8 {[%clk 0:00:20]} 35. Be3 {[%clk 0:00:03]}  Rb2 {[%clk 0:00:19]} 36. Nd6 {[%clk 0:00:03]}  Rc7 {[%clk 0:00:19]} 37. Bb6 {[%clk 0:00:02]}  Rd7 {[%clk 0:00:18]} 38. c5 {[%clk 0:00:03]}  Be6 {[%clk 0:00:16]} 39. Bb5 {[%clk 0:00:03]}  Re7 {[%clk 0:00:16]} 40. Bd8 {[%clk 0:00:04]}  Rd7 {[%clk 0:00:13]} 41. Bxd7 {[%clk 0:00:02]}  Bxd7 {[%clk 0:00:13]} 42. Nxb7 {[%clk 0:00:02]}  Rxb3 {[%clk 0:00:14]} 43. Bb6 {[%clk 0:00:02]}  Ra3 {[%clk 0:00:11]} 44. Nd8 {[%clk 0:00:02]}  Bf6 {[%clk 0:00:10]} 45. c6 {[%clk 0:00:02]}  Bxh3 {[%clk 0:00:10]} 46. c7 {[%clk 0:00:02]}  Bc8 {[%clk 0:00:08]} 47. Nc6 {[%clk 0:00:02]}  Kf7 {[%clk 0:00:08]} 48. Na7 {[%clk 0:00:03]}  Bb7 {[%clk 0:00:07]} 49. c8=Q {[%clk 0:00:03]}  Bxc8 {[%clk 0:00:07]} 50. Nxc8 {[%clk 0:00:04]}  Rxf3 {[%clk 0:00:07]} 51. Nd6+ {[%clk 0:00:04]}  Ke6 {[%clk 0:00:07]} 52. Ne4 {[%clk 0:00:04]}  Be7 {[%clk 0:00:06]} 53. Ra1 {[%clk 0:00:04]}  Rb3 {[%clk 0:00:06]} 54. a6 {[%clk 0:00:04]}  Rxb6 {[%clk 0:00:06]} 55. a7 {[%clk 0:00:04]} 1-0


[Site "https://www.chess.com"]

[Event "Titled Tuesday Blitz March 22 Late 2022"]
[White "Aydin, Gulenay"]
[Black "Al-Tarboush, Ward"]
[WhiteFideId "34557431"]
[BlackFideId "7601450"]
[WhiteElo "1429"]
[BlackElo "2276"]
[Result "0-1"]
[Round "09"]
[TimeControl "180+1"]
[Date "2022.03.22"]
[WhiteClock "0:00:03"]
[BlackClock "0:00:06"]

1. e4 {[%clk 0:03:00]}  b6 {[%clk 0:02:54]} 2. d4 {[%clk 0:03:00]}  Bb7 {[%clk 0:02:54]} 3. Bd3 {[%clk 0:03:01]}  e6 {[%clk 0:02:54]} 4. Nf3 {[%clk 0:03:00]}  c5 {[%clk 0:02:54]} 5. c3 {[%clk 0:03:00]}  Nf6 {[%clk 0:02:55]} 6. Nbd2 {[%clk 0:02:59]}  Be7 {[%clk 0:02:51]} 7. O-O {[%clk 0:02:59]}  cxd4 {[%clk 0:02:51]} 8. cxd4 {[%clk 0:02:59]}  Ba6 {[%clk 0:02:51]} 9. Bxa6 {[%clk 0:02:56]}  Nxa6 {[%clk 0:02:52]} 10. Re1 {[%clk 0:02:57]}  O-O {[%clk 0:02:50]} 11. e5 {[%clk 0:02:53]}  Nd5 {[%clk 0:02:50]} 12. Ne4 {[%clk 0:02:53]}  f5 {[%clk 0:02:49]} 13. exf6 {[%clk 0:02:49]}  Nxf6 {[%clk 0:02:46]} 14. Nxf6+ {[%clk 0:02:45]}  Bxf6 {[%clk 0:02:47]} 15. d5 {[%clk 0:02:44]}  Nc5 {[%clk 0:02:47]} 16. Rb1 {[%clk 0:02:39]}  Re8 {[%clk 0:02:41]} 17. b4 {[%clk 0:02:30]}  Nb7 {[%clk 0:02:41]} 18. Bf4 {[%clk 0:02:24]}  Rc8 {[%clk 0:02:34]} 19. Qa4 {[%clk 0:02:01]}  Rc4 {[%clk 0:02:33]} 20. Qxa7 {[%clk 0:01:53]}  Qa8 {[%clk 0:02:27]} 21. Qxb6 {[%clk 0:01:25]}  Rxf4 {[%clk 0:02:26]} 22. dxe6 {[%clk 0:01:25]}  dxe6 {[%clk 0:02:22]} 23. Rxe6 {[%clk 0:01:26]}  Rxe6 {[%clk 0:02:22]} 24. Qxe6+ {[%clk 0:01:27]}  Kh8 {[%clk 0:02:21]} 25. Re1 {[%clk 0:01:19]}  h6 {[%clk 0:02:21]} 26. b5 {[%clk 0:01:17]}  Nc5 {[%clk 0:02:11]} 27. Qd6 {[%clk 0:00:39]}  Rc4 {[%clk 0:02:10]} 28. b6 {[%clk 0:00:33]}  Ne4 {[%clk 0:02:03]} 29. Qe6 {[%clk 0:00:28]}  Rb4 {[%clk 0:01:45]} 30. h3 {[%clk 0:00:27]}  Qb7 {[%clk 0:01:32]} 31. a3 {[%clk 0:00:25]}  Rb2 {[%clk 0:00:15]} 32. Qe8+ {[%clk 0:00:22]}  Kh7 {[%clk 0:00:14]} 33. Qxe4+ {[%clk 0:00:21]}  Qxe4 {[%clk 0:00:14]} 34. Rxe4 {[%clk 0:00:22]}  Rxb6 {[%clk 0:00:15]} 35. Ra4 {[%clk 0:00:17]}  Be7 {[%clk 0:00:13]} 36. g3 {[%clk 0:00:17]}  Rb3 {[%clk 0:00:12]} 37. Kg2 {[%clk 0:00:16]}  Bxa3 {[%clk 0:00:12]} 38. Nd4 {[%clk 0:00:15]}  Rd3 {[%clk 0:00:11]} 39. Ne6 {[%clk 0:00:12]}  Be7 {[%clk 0:00:07]} 40. Ra7 {[%clk 0:00:11]}  Bf6 {[%clk 0:00:07]} 41. Nf4 {[%clk 0:00:11]}  Rd2 {[%clk 0:00:07]} 42. Nh5 {[%clk 0:00:11]}  Bd4 {[%clk 0:00:06]} 43. Rf7 {[%clk 0:00:09]}  Kg6 {[%clk 0:00:06]} 44. Rf8 {[%clk 0:00:03]}  Kxh5 {[%clk 0:00:05]} 45. g4+ {[%clk 0:00:02]}  Kg6 {[%clk 0:00:05]} 46. Kg3 {[%clk 0:00:02]}  Be5+ {[%clk 0:00:05]} 47. f4 {[%clk 0:00:03]}  Bf6 {[%clk 0:00:05]} 48. h4 {[%clk 0:00:03]}  Rd3+ {[%clk 0:00:06]} 49. Kg2 {[%clk 0:00:03]}  Bxh4 {[%clk 0:00:07]} 50. f5+ {[%clk 0:00:02]}  Kh7 {[%clk 0:00:07]} 51. Rf7 {[%clk 0:00:02]}  Rg3+ {[%clk 0:00:06]} 52. Kf2 {[%clk 0:00:02]}  Rxg4+ {[%clk 0:00:06]} 53. Kf3 {[%clk 0:00:03]}  Ra4 {[%clk 0:00:06]} 0-1


[Site "https://www.chess.com"]

[Event "Titled Tuesday Blitz March 22 Late 2022"]
[White "Babazada, Khazar"]
[Black "Dobrov, Vladimir"]
[WhiteFideId "13413554"]
[BlackFideId "4136594"]
[WhiteElo "2418"]
[BlackElo "2614"]
[Result "0-1"]
[Round "09"]
[TimeControl "180+1"]
[Date "2022.03.22"]
[WhiteClock "0:00:47"]
[BlackClock "0:00:09"]

1. Nf3 {[%clk 0:03:00]}  d5 {[%clk 0:02:59]} 2. g3 {[%clk 0:03:01]}  Nd7 {[%clk 0:02:59]} 3. d4 {[%clk 0:03:01]}  Nb6 {[%clk 0:02:57]} 4. Bg2 {[%clk 0:03:02]}  Bf5 {[%clk 0:02:51]} 5. O-O {[%clk 0:03:02]}  e6 {[%clk 0:02:47]} 6. a4 {[%clk 0:03:02]}  a5 {[%clk 0:02:44]} 7. b3 {[%clk 0:03:02]}  Nf6 {[%clk 0:02:36]} 8. Bb2 {[%clk 0:03:03]}  Be7 {[%clk 0:02:34]} 9. Nbd2 {[%clk 0:03:03]}  O-O {[%clk 0:02:34]} 10. e3 {[%clk 0:03:01]}  h6 {[%clk 0:02:33]} 11. Rc1 {[%clk 0:02:56]}  c6 {[%clk 0:02:32]} 12. Qe2 {[%clk 0:02:56]}  Nbd7 {[%clk 0:02:31]} 13. c4 {[%clk 0:02:51]}  Qb6 {[%clk 0:02:26]} 14. Ne1 {[%clk 0:02:44]}  Ne4 {[%clk 0:02:21]} 15. c5 {[%clk 0:02:24]}  Qa6 {[%clk 0:02:21]} 16. Qxa6 {[%clk 0:02:21]}  Rxa6 {[%clk 0:02:17]} 17. Nxe4 {[%clk 0:02:19]}  dxe4 {[%clk 0:02:12]} 18. f3 {[%clk 0:02:06]}  Nf6 {[%clk 0:02:12]} 19. fxe4 {[%clk 0:02:03]}  Bxe4 {[%clk 0:02:12]} 20. Bxe4 {[%clk 0:01:47]}  Nxe4 {[%clk 0:02:12]} 21. Nd3 {[%clk 0:01:47]}  b6 {[%clk 0:02:10]} 22. Ba3 {[%clk 0:01:45]}  Rb8 {[%clk 0:02:03]} 23. Nf2 {[%clk 0:01:35]}  Nxf2 {[%clk 0:01:47]} 24. Kxf2 {[%clk 0:01:36]}  bxc5 {[%clk 0:01:47]} 25. Bxc5 {[%clk 0:01:37]}  Bxc5 {[%clk 0:01:47]} 26. Rxc5 {[%clk 0:01:38]}  Rxb3 {[%clk 0:01:47]} 27. Rfc1 {[%clk 0:01:35]}  Ra3 {[%clk 0:01:40]} 28. Rxc6 {[%clk 0:01:25]}  Rxc6 {[%clk 0:01:39]} 29. Rxc6 {[%clk 0:01:26]}  Rxa4 {[%clk 0:01:36]} 30. Ra6 {[%clk 0:01:26]}  g5 {[%clk 0:01:32]} 31. Kf3 {[%clk 0:01:26]}  Kg7 {[%clk 0:01:30]} 32. h4 {[%clk 0:01:23]}  Ra3 {[%clk 0:01:18]} 33. hxg5 {[%clk 0:01:22]}  hxg5 {[%clk 0:01:19]} 34. g4 {[%clk 0:01:19]}  a4 {[%clk 0:01:17]} 35. Ke4 {[%clk 0:01:17]}  Ra1 {[%clk 0:01:16]} 36. Ra7 {[%clk 0:01:12]}  a3 {[%clk 0:01:15]} 37. Ra5 {[%clk 0:01:11]}  Kf6 {[%clk 0:01:12]} 38. d5 {[%clk 0:01:09]}  exd5+ {[%clk 0:01:02]} 39. Rxd5 {[%clk 0:01:09]}  Kg6 {[%clk 0:01:00]} 40. Ra5 {[%clk 0:01:08]}  f6 {[%clk 0:00:59]} 41. Kf3 {[%clk 0:01:04]}  Kf7 {[%clk 0:00:57]} 42. Ra6 {[%clk 0:01:01]}  Ke7 {[%clk 0:00:57]} 43. Ke4 {[%clk 0:00:59]}  a2 {[%clk 0:00:46]} 44. Ra5 {[%clk 0:00:56]}  Kd6 {[%clk 0:00:44]} 45. Ra8 {[%clk 0:00:54]}  Kc5 {[%clk 0:00:44]} 46. Ra4 {[%clk 0:00:50]}  Kb5 {[%clk 0:00:42]} 47. Ra8 {[%clk 0:00:51]}  Kb4 {[%clk 0:00:38]} 48. Ra7 {[%clk 0:00:51]}  Kc3 {[%clk 0:00:36]} 49. Ra8 {[%clk 0:00:50]}  Kd2 {[%clk 0:00:33]} 50. Ra7 {[%clk 0:00:49]}  Ke2 {[%clk 0:00:32]} 51. Ra3 {[%clk 0:00:50]}  Kf2 {[%clk 0:00:27]} 52. Kf5 {[%clk 0:00:46]}  Kg3 {[%clk 0:00:25]} 53. e4+ {[%clk 0:00:47]}  Kh4 {[%clk 0:00:14]} 54. Kg6 {[%clk 0:00:47]}  Kxg4 {[%clk 0:00:12]} 55. Ra4 {[%clk 0:00:47]}  Kh3 {[%clk 0:00:09]} 0-1


[Site "https://www.chess.com"]